fUST/lending_fUST_20260606
["ID","MTS","AMOUNT","RATE_DAILY","PERIOD"]
[424269732,1780715439000,-12050.58120793,0.00022891,2]
[424269728,1780715439000,-500.0,0.0002289,2]
[424269733,1780715439000,-128380.15261729,0.00022891,2]
[424269729,1780715439000,-500.0,0.0002289,2]
[424269725,1780715439000,-237.15789393,0.00022336,2]
[424269727,1780715439000,-281.13702937,0.0002289,2]
[424269862,1780715442000,-15238.78052217,0.00022891,2]
[424269919,1780715443000,-3277.0474745,0.00022891,2]
[424269918,1780715443000,-2110.0,0.00022891,2]
[424269916,1780715443000,-3339.73672122,0.00022891,2]
[424269917,1780715443000,-7026.29999999,0.00022891,2]
[424269926,1780715444000,-1357.39668019,0.00022891,2]
[424269933,1780715447000,-5725.54219994,0.00022891,2]
[424269950,1780716227000,20000.0,0.00023287,120]
[424269953,1780716449000,-1688.09446745,9.703e-05,2]
[424269954,1780716449000,-2256.30336607,9.703e-05,2]
[424269956,1780716461000,-1055.60216648,9.703e-05,2]
[424269957,1780716510000,100000.0,0.00023288,120]
[424269967,1780716547000,80143.0,0.00023288,120]
[424269966,1780716547000,-98366.55508943,0.00012,2]
[424269963,1780716547000,-196.79592056,0.00011999,2]
[424269965,1780716547000,-452.74412021,0.00011999,2]
[424269964,1780716547000,-500.0,0.00011999,2]
[424269962,1780716547000,-300.0,0.00010199,2]
[424269961,1780716547000,-11483.14549635,0.0001,2]
[424269959,1780716547000,-2402.06368024,9.703e-05,2]
[424269960,1780716547000,-2419.83235663,9.801e-05,2]
[424269968,1780716559000,-271.36095455,0.00012,2]
[424270001,1780716631000,-266.50182187,0.00012,2]
[424270015,1780716631000,-285.53285327,0.00014809,2]
[424270004,1780716631000,-1742.55011859,0.00012,2]
[424270014,1780716631000,-497.31714674,0.00013463,2]
[424270006,1780716631000,-237.93360614,0.00012,2]
[424270012,1780716631000,-222.68285326,0.00013463,2]
[424270010,1780716631000,-310.12383881,0.00012239,2]
[424270007,1780716631000,-289.87616119,0.00012239,2]
[424270055,1780716638000,-178.34717266,0.0001629,2]
[424270054,1780716638000,-578.46714673,0.00014809,2]
[424270098,1780716640000,-494.98345456,0.0001629,2]
[424270101,1780716640000,-724.93320179,0.00017919,2]
[424270069,1780716640000,-326.66937278,0.0001629,2]
[424270165,1780716643000,-492.0,0.00019711,2]
[424270163,1780716643000,-167.731,0.00019364,2]
[424270166,1780716643000,-1000.0,0.00021682,10]
[424270168,1780716643000,-293.0,0.00022,2]
[424270162,1780716643000,-152.0,0.0001903,30]
[424270161,1780716643000,-244.0,0.00017919,2]
[424270169,1780716643000,-293.0,0.00022192,7]
[424270164,1780716643000,-1000.0,0.00019711,2]
[424270160,1780716643000,-275.06679821,0.00017919,2]
[424270167,1780716643000,-791.0,0.00021682,10]
[424270170,1780716643000,-300.0,0.0002269,3]
[424270171,1780716643000,-1107.6663692,0.00022956,2]
[424270180,1780716643000,-20.41577518,0.0002337,7]
[424270172,1780716643000,-1350.4745122,0.00022956,2]
[424270184,1780716643000,-1265.30124849,0.00023514,2]
[424270181,1780716643000,-137.68794214,0.0002337,7]
[424270182,1780716643000,-179.44,0.00023403,4]
[424270183,1780716643000,-151.0,0.000235,6]
[424270178,1780716643000,-152.0,0.00023141,7]
[424270173,1780716643000,-273.99900599,0.00023014,7]
[424270185,1780716643000,-387.15404018,0.00023514,2]
[424270177,1780716643000,-27.00099401,0.00023087,7]
[424270179,1780716643000,-152.0,0.00023173,7]
[424270176,1780716643000,-124.99900599,0.00023087,7]
[424270175,1780716643000,-160.0,0.00023036,4]
[424270174,1780716643000,-19.00099401,0.00023014,7]
[424270187,1780716646000,-160.0,0.00023057,2]
[424270189,1780716646000,-3380.55562623,0.00023514,2]
[424270188,1780716646000,-682.0,0.00023514,2]
[424270191,1780716646000,-1338.23553534,0.00023514,2]
[424270193,1780716646000,-164.574989,0.0002352,14]
[424270192,1780716646000,-205.468563,0.0002352,14]
[424270195,1780716646000,-318.55968363,0.00023598,120]
[424270194,1780716646000,-500.0,0.00023593,9]
[424270196,1780716646000,-415.79344599,0.00023598,120]
[424270198,1780716646000,-203.29116952,0.00023598,120]
[424270199,1780716646000,-830.54617014,0.00023598,120]
[424270206,1780716646000,-151.0,0.00023614,2]
[424270197,1780716646000,-307.06925777,0.00023598,120]
[424270200,1780716646000,-320.11922034,0.00023598,120]
[424270210,1780716646000,-5824.62473304,0.00023614,30]
[424270202,1780716646000,-215.281314,0.00023614,2]
[424270205,1780716646000,-151.0,0.00023614,2]
[424270209,1780716646000,-14466.58710401,0.00023614,30]
[424270203,1780716646000,-151.0,0.00023614,2]
[424270208,1780716646000,-300.0,0.00023614,2]
[424270201,1780716646000,-169.0,0.00023613,120]
[424270207,1780716646000,-184.74794,0.00023614,2]
[424270204,1780716646000,-151.0,0.00023614,2]
[424270236,1780717641000,-154.62,0.00022809,2]
[424270230,1780717641000,-2568.91837594,0.00016647,2]
[424270231,1780717641000,-3526.21750632,0.00016815,2]
[424270233,1780717641000,-183.0,0.00022,2]
[424270234,1780717641000,-183.0,0.00022192,7]
[424270235,1780717641000,-162.0461548,0.00022299,2]
[424270237,1780717641000,-183.0,0.00023014,7]
[424270232,1780717641000,-1110.52,0.00018,2]
[424270239,1780717641000,-170.08977471,0.00023337,30]
[424270240,1780717641000,-167.731,0.00023413,3]
[424270244,1780717641000,-500.0,0.00023413,2]
[424270241,1780717641000,-401.95433838,0.00023413,2]
[424270243,1780717641000,-452.74412021,0.00023413,2]
[424270242,1780717641000,-196.79592056,0.00023413,2]
[424270245,1780717641000,-69012.25558849,0.00023414,2]
[424270246,1780717641000,-27516.96742169,0.00023414,2]
[424270238,1780717641000,-152.0,0.00023103,7]
[424270248,1780717646000,-2042.37301159,0.00023414,2]
[424270247,1780717646000,-167.50701421,0.00022757,14]
[424270281,1780717831000,-411.94375545,0.00023313,2]
[424270289,1780717838000,-433.45811007,0.0002308,2]
[424270290,1780717838000,-88.05624455,0.00023313,2]
[424270294,1780717838000,-3495.8960503,0.00023314,2]
[424270292,1780717838000,-11160.66033913,0.00023314,2]
[424270291,1780717838000,-166.92088415,0.00023313,2]
[424270299,1780717840000,-1106.38514969,0.00023314,2]
[424270300,1780717843000,-32.51454546,0.00023314,2]
[424270309,1780717846000,-473.37421687,0.00023314,2]
[424270308,1780717846000,-1847.5,0.00023314,2]
[424270307,1780717846000,-2216.73817654,0.00023314,2]
[424270321,1780718239000,200.0,0.0001,30]
[424270338,1780718589000,-3031.26528507,0.00022692,2]
[424270343,1780718743000,-357.26982633,0.00016,2]
[424270345,1780718852000,-713.73266095,0.00015,2]
[424270344,1780718852000,-357.26982633,0.0001485,2]
[424270349,1780718952000,-616.83724996,0.0001485,2]
[424270351,1780718958000,-106.26733905,0.00015,2]
[424270350,1780718958000,-4031.17015486,0.0001485,2]
[424270352,1780718958000,-642.73017367,0.00016,2]
[424270355,1780718958000,-1000.0,0.000185,2]
[424270356,1780718958000,-1000.0,0.00019,2]
[424270357,1780718958000,-1665.96637296,0.0002,4]
[424270354,1780718958000,-1000.0,0.00018,2]
[424270353,1780718958000,-1000.0,0.00017,2]
[424270358,1780718967000,-156.8,0.0002,4]
[424270448,1780719038000,-121130.72956657,0.00023214,2]
[424270422,1780719038000,-448.9311762,0.00018139,2]
[424270447,1780719038000,-93469.22773913,0.00023214,2]
[424270427,1780719038000,-2000.0,0.00022,6]
[424270428,1780719038000,-153.0,0.00022,2]
[424270426,1780719038000,-1137.87642486,0.0002178,2]
[424270425,1780719038000,-2000.0,0.00021,4]
[424270429,1780719038000,-153.0,0.00022192,7]
[424270430,1780719038000,-1000.0,0.00023,8]
[424270441,1780719038000,-468.03470974,0.00023199,2]
[424270440,1780719038000,-500.0,0.00023199,2]
[424270439,1780719038000,-500.0,0.00023199,2]
[424270442,1780719038000,-188.795,0.00023213,3]
[424270423,1780719038000,-306.64605537,0.000186,2]
[424270434,1780719038000,-375.1573826,0.00023114,2]
[424270431,1780719038000,-153.0,0.00023014,7]
[424270446,1780719038000,-300.0,0.00023214,2]
[424270445,1780719038000,-279.90779854,0.00023213,2]
[424270444,1780719038000,-300.0,0.00023213,2]
[424270443,1780719038000,-466.8446189,0.00023213,2]
[424270424,1780719038000,-177.23362704,0.0002,4]
[424270437,1780719038000,-500.0,0.00023199,2]
[424270438,1780719038000,-168.39335656,0.00023199,2]
[424270436,1780719038000,-500.0,0.00023199,2]
[424270433,1780719038000,-166.66666667,0.00023114,2]
[424270432,1780719038000,-153.3664238,0.000231,2]
[424270435,1780719038000,-5209.15068162,0.00023188,2]
[424270605,1780719046000,-8554.25207713,0.00023214,2]
[424270603,1780719046000,-167.27578106,0.00023114,2]
[424270604,1780719046000,-1074.4368364,0.00023214,2]
[424270619,1780719442000,-300.0,0.00018181,2]
[424270621,1780719454000,-147.16167463,0.00018181,2]
[424270627,1780719770000,-11483.14549635,0.0001,2]
[424270630,1780719823000,-466.8446189,0.00011999,2]
[424270632,1780719835000,-33.1553811,0.00011999,2]
[424270633,1780719889000,-232.72669221,0.00011999,2]
[424270636,1780719942000,-191.86776809,0.00011999,2]
[424270635,1780719942000,-500.0,0.00011999,2]
[424270639,1780719995000,-104.67915429,0.00011999,2]
[424270640,1780719996000,65000.0,0.0002328,120]
[424270643,1780720048000,-2137.77327819,0.00012,2]
[424270642,1780720048000,-220.58461065,0.00011999,2]
[424270647,1780720102000,-300.0,0.00012,2]
[424270648,1780720115000,-93469.22773913,0.00012,2]
[424270649,1780720127000,-279.90779854,0.00012,2]
[424270655,1780720154000,-1942.48030966,0.000125,2]
[424270651,1780720154000,-2179.64627357,0.00012,2]
[424270652,1780720154000,-167.58659129,0.00012,2]
[424270653,1780720154000,-264.15106059,0.000121,5]
[424270654,1780720154000,-600.0,0.00012239,2]
[424270656,1780720154000,-720.0,0.00013463,2]
[424270658,1780720154000,-167.58659124,0.00015986,2]
[424270659,1780720154000,-1000.0,0.0001629,2]
[424270661,1780720154000,-244.0,0.00017919,2]
[424270660,1780720154000,-1000.0,0.00017919,2]
[424270662,1780720154000,-150.0,0.00018163,2]
[424270663,1780720154000,-2079.35954696,0.00018181,2]
[424270657,1780720154000,-864.0,0.00014809,2]
[424270664,1780720162000,-359.20790975,0.00018181,2]
[424270666,1780720162000,-180.08109753,0.00018956,2]
[424270667,1780720162000,-151.036,0.00019382,2]
[424270668,1780720162000,-150.1615911,0.00019711,2]
[424270665,1780720162000,-343.7164035,0.00018351,2]
[424270740,1780720238000,-185.0,0.00023137,2]
[424270749,1780720238000,-355.20624048,0.00023413,2]
[424270741,1780720238000,-447.748,0.00023137,2]
[424270747,1780720238000,-152.0,0.00023322,7]
[424270748,1780720238000,-174.66343082,0.00023413,2]
[424270746,1780720238000,-200.0,0.000233,14]
[424270736,1780720238000,-824.0,0.00022989,3]
[424270735,1780720238000,-350.14689038,0.00022536,2]
[424270733,1780720238000,-153.0,0.00022,2]
[424270738,1780720238000,-300.0,0.00023014,2]
[424270739,1780720238000,-59992.3660554,0.00023014,2]
[424270750,1780720238000,-639.37123286,0.00023413,2]
[424270737,1780720238000,-153.0,0.00023014,7]
[424270731,1780720238000,-167.58659124,0.00019971,2]
[424270732,1780720238000,-245.32861464,0.0002113,2]
[424270734,1780720238000,-160.0,0.00022395,3]
[424270742,1780720238000,-186.69482199,0.00023288,2]
[424270751,1780720238000,-600.0,0.00023474,10]
[424270745,1780720238000,-746.77928797,0.00023288,2]
[424270764,1780720238000,-400.68279184,0.00023636,30]
[424270765,1780720238000,-15399.9999992,0.00023636,30]
[424270762,1780720238000,-152.31,0.00023628,7]
[424270763,1780720238000,-147385.1962028,0.00023636,30]
[424270752,1780720238000,-160.0,0.00023505,2]
[424270761,1780720238000,-229.83,0.00023625,7]
[424270758,1780720238000,-227.59,0.00023615,7]
[424270759,1780720238000,-169.0,0.00023619,120]
[424270753,1780720238000,-301.7217,0.0002352,14]
[424270755,1780720238000,-4688.23561344,0.00023536,2]
[424270756,1780720238000,-297.26209177,0.0002355,120]
[424270757,1780720238000,-500.0,0.00023614,9]
[424270754,1780720238000,-237.062804,0.0002352,14]
[424270744,1780720238000,-560.08446598,0.00023288,2]
[424270743,1780720238000,-373.38964399,0.00023288,2]
[424270760,1780720238000,-500.0,0.00023619,120]
[424270857,1780720241000,-643.78105749,0.00023636,30]
[424270944,1780720248000,-421.47744492,0.00023636,30]
[424270952,1780720249000,-79366.5180973,0.00023636,30]
[424270954,1780720249000,-305.99999999,0.00023636,30]
[424270969,1780720471000,-188.795,0.00011999,2]
[424270970,1780720483000,-188.795,0.00011999,2]
[424270971,1780720496000,-122.41,0.00011999,2]
[424270972,1780720549000,-500.0,0.00012,2]
[424270973,1780720561000,-500.0,0.00012,2]
[424270974,1780720574000,-500.0,0.00012,2]
[424270975,1780720587000,-168.39335656,0.00012,2]
[424270976,1780720599000,-168.39335656,0.00012,2]
[424270978,1780720611000,-500.0,0.00012,2]
[424270980,1780720624000,-500.0,0.00012,2]
[424270991,1780720711000,-591.163,0.00012,2]
[424270992,1780720968000,-500.0,0.00012,2]
[424270993,1780720980000,-500.0,0.00012,2]
[424270995,1780720993000,-468.03470974,0.00012,2]
[424270996,1780721006000,-468.03470974,0.00012,2]
[424270998,1780721018000,-2316.8910705,0.00012,2]
[424271001,1780721072000,-166.66666667,0.00012,2]
[424271002,1780721086000,-166.66666667,0.00012,2]
[424271003,1780721098000,-375.1573826,0.00012,2]
[424271004,1780721111000,-3531.55022814,0.00012,2]
[424271005,1780721132000,-228.18533468,0.00012,2]
[424271006,1780721163000,-153.0,0.00012,2]
[424271008,1780721199000,-167.50701421,0.00013233,14]
[424271011,1780721232000,-2202.66935104,0.00012,2]
[424271028,1780721251000,-249.20903989,0.00012,2]
[424271035,1780721370000,-106.1340525,0.00018627,2]
[424271034,1780721370000,-354.69782019,0.0001296,7]
[424271032,1780721370000,-1262.70291385,0.00012,2]
[424271033,1780721370000,-236.46521346,0.0001224,7]
[424271076,1780721432000,-314.0797813,0.00022548,2]
[424271072,1780721432000,-154.0,0.00022,2]
[424271078,1780721432000,-229.30783925,0.00022713,2]
[424271074,1780721432000,-153.0,0.00022,2]
[424271244,1780721441000,-326.93440978,0.00022713,2]
[424271242,1780721441000,-270.69216075,0.00022713,2]
[424271250,1780721441000,-297.69714198,0.00022713,2]
[424271248,1780721441000,-202.30285802,0.00022713,2]
[424271252,1780721441000,-232.89601202,0.00022713,2]
[424271246,1780721441000,-500.0,0.00022713,2]
[424271295,1780721444000,-22.1081444,0.00022713,2]
[424271296,1780721444000,-477.8918556,0.00022713,2]
[424271298,1780721444000,-500.0,0.00022713,2]
[424271294,1780721444000,-267.10398798,0.00022713,2]
[424271297,1780721444000,-500.0,0.00022713,2]
[424271303,1780721444000,-531.80512977,0.00022713,2]
[424271301,1780721444000,-298.2518262,0.00022713,2]
[424271299,1780721444000,-500.0,0.00022713,2]
[424271318,1780721447000,-500.0,0.00022713,2]
[424271317,1780721447000,-81.47439911,0.00022713,2]
[424271319,1780721447000,-500.0,0.00022713,2]
[424271322,1780721447000,-500.0,0.00022713,2]
[424271320,1780721447000,-500.0,0.00022713,2]
[424271321,1780721447000,-500.0,0.00022713,2]
[424271325,1780721447000,-500.0,0.00022713,2]
[424271323,1780721447000,-500.0,0.00022713,2]
[424271327,1780721447000,-500.0,0.00022713,2]
[424271324,1780721447000,-500.0,0.00022713,2]
[424271333,1780721447000,-500.0,0.00022713,2]
[424271334,1780721447000,-500.0,0.00022713,2]
[424271338,1780721447000,-22058.26814131,0.00022714,2]
[424271336,1780721447000,-500.0,0.00022713,2]
[424271328,1780721447000,-383.55942266,0.00022713,2]
[424271329,1780721447000,-116.44057734,0.00022713,2]
[424271330,1780721447000,-500.0,0.00022713,2]
[424271331,1780721447000,-500.0,0.00022713,2]
[424271335,1780721447000,-500.0,0.00022713,2]
[424271326,1780721447000,-500.0,0.00022713,2]
[424271332,1780721447000,-500.0,0.00022713,2]
[424271337,1780721447000,-351.8142565,0.00022714,2]
[424271354,1780721944000,-155.20801154,0.00015945,3]
[424271356,1780721998000,-1000.0,0.0002,2]
[424271357,1780722010000,-5209.15068162,0.0002,2]
[424271361,1780722073000,-150.0,0.0001998,2]
[424271362,1780722090000,-1862.23547183,0.0002,2]
[424271371,1780722358000,-162.0,0.00015945,3]
[424271373,1780722358000,-44.26982633,0.000199,2]
[424271372,1780722358000,-151.0,0.00019701,2]
[424271378,1780722454000,-531.61384655,0.0002,2]
[424271379,1780722454000,-368.15848676,0.0002,2]
[424271376,1780722454000,-162.0,0.00015945,3]
[424271377,1780722454000,-122.39684034,0.000199,2]
[424271424,1780722553000,-2079.39955054,0.00019602,2]
[424271427,1780722556000,-2544.81263654,0.0002,2]
[424271426,1780722556000,-899.34991021,0.000198,2]
[424271425,1780722556000,-79.34566973,0.00019602,2]
[424271432,1780722568000,-4900.0,0.0002,2]
[424271465,1780722631000,-2699.30761826,0.00022514,2]
[424271461,1780722631000,-578.85408684,0.00022513,2]
[424271455,1780722631000,-2187.0288767,0.0002,2]
[424271456,1780722631000,-347.61813516,0.00020935,2]
[424271464,1780722631000,-300.0,0.00022514,3]
[424271459,1780722631000,-1136.65996954,0.00022031,2]
[424271460,1780722631000,-158.588,0.00022037,2]
[424271457,1780722631000,-1060.66113195,0.00021273,2]
[424271462,1780722631000,-219.20221731,0.00022514,2]
[424271463,1780722631000,-80.79778269,0.00022514,2]
[424271458,1780722631000,-250.98287218,0.00022,2]
[424271571,1780722640000,-191.48394787,0.00022513,2]
[424271910,1780722643000,-353.4242586,0.00022514,2]
[424271908,1780722643000,-308.51605213,0.00022513,2]
[424272093,1780722646000,-5000.0,0.00022288,2]
[424272141,1780722969000,222.22222222,0.00022432,120]
[424272156,1780723567000,-1838.19305297,0.0001188,2]
[424272155,1780723567000,-153.0,0.0001188,2]
[424272157,1780723580000,-153.0,0.0001188,2]
[424272158,1780723593000,-2000.0,0.0001188,2]
[424272161,1780723605000,-153.0,0.0001188,2]
[424272162,1780723618000,-153.0,0.0001188,2]
[424272165,1780723631000,-335.45011901,0.0001188,2]
[424272164,1780723631000,-2042.41286774,0.0001188,2]
[424272163,1780723631000,-1137.87642486,0.0001188,2]
[424272166,1780723645000,-1137.87642486,0.0001188,2]
[424272167,1780723658000,-346.38416353,0.0001188,2]
[424272168,1780723711000,-177.23362704,0.00012,2]
[424272181,1780723723000,-94.12732751,0.00012,2]
[424272187,1780723746000,-192.65118154,0.00017797,2]
[424272197,1780723746000,-152.40477544,0.00018166,2]
[424272186,1780723746000,-220.62004029,0.00017797,2]
[424272188,1780723746000,-402.17051753,0.00018152,2]
[424272189,1780723746000,-396.24171485,0.00018152,2]
[424272193,1780723746000,-244.10294886,0.00018152,2]
[424272190,1780723746000,-187.55519577,0.00018152,2]
[424272191,1780723746000,-385.30236307,0.00018152,2]
[424272192,1780723746000,-193.91874577,0.00018152,2]
[424272194,1780723746000,-229.6141084,0.00018152,2]
[424272195,1780723746000,-441.24008058,0.00018152,2]
[424272196,1780723746000,-2121.14148196,0.00018152,2]
[424272210,1780723746000,-377.26884969,0.000187,2]
[424272199,1780723746000,-10000.0,0.00018191,2]
[424272203,1780723746000,-234.80883654,0.00018396,2]
[424272201,1780723746000,-500.0,0.00018396,2]
[424272200,1780723746000,-500.0,0.00018396,2]
[424272202,1780723746000,-500.0,0.00018396,2]
[424272205,1780723746000,-579.82518262,0.00018396,2]
[424272204,1780723746000,-500.0,0.00018396,2]
[424272208,1780723746000,-1972.61062598,0.000185,2]
[424272206,1780723746000,-13684.9513112,0.00018492,2]
[424272207,1780723746000,-160.0,0.00018493,2]
[424272209,1780723746000,-208.33333333,0.000185,2]
[424272198,1780723746000,-230.35619772,0.00018176,2]
[424272211,1780723750000,-1595.34177629,0.000187,2]
[424272212,1780723750000,-1972.61062598,0.000189,2]
[424272213,1780723750000,-222.22222222,0.00019004,2]
[424272218,1780723750000,-89.40840257,0.0001944,7]
[424272214,1780723750000,-1972.61062598,0.000191,2]
[424272216,1780723750000,-1972.61062598,0.000192,2]
[424272217,1780723750000,-233.263,0.00019397,2]
[424272215,1780723750000,-368.18303523,0.00019148,2]
[424272240,1780723831000,-62.59159743,0.0001944,7]
[424272239,1780723831000,-180.08109753,0.00019024,2]
[424272241,1780723831000,-152.0,0.0001944,7]
[424272242,1780723831000,-19.45817267,0.00020168,2]
[424272243,1780723831000,-339.74973708,0.00020168,2]
[424272245,1780723831000,-737.97204148,0.00020426,2]
[424272247,1780723831000,-310.43142632,0.00020498,2]
[424272244,1780723831000,-184.849573,0.00020372,2]
[424272246,1780723831000,-326.86764476,0.00020498,2]
[424272258,1780723832000,-17070.09742775,0.00021097,2]
[424272259,1780723832000,-600.0,0.00021518,10]
[424272256,1780723832000,-467.09929999,0.00021097,2]
[424272253,1780723832000,-500.0,0.00021096,2]
[424272249,1780723832000,-1045.97646324,0.00020498,2]
[424272252,1780723832000,-588.50341638,0.00021096,2]
[424272255,1780723832000,-4672.20316286,0.00021097,2]
[424272254,1780723832000,-500.0,0.00021096,2]
[424272251,1780723832000,-222.22222222,0.00020718,14]
[424272260,1780723832000,-2185.99836128,0.000219,2]
[424272250,1780723832000,-1632.70388559,0.00020498,2]
[424272248,1780723832000,-277.93033425,0.00020498,2]
[424272263,1780723832000,-170.08977471,0.00022439,2]
[424272261,1780723832000,-171.0,0.00022,2]
[424272265,1780723832000,-258.76843126,0.000225,2]
[424272257,1780723832000,-494.4389783,0.00021097,2]
[424272269,1780723832000,-151.0,0.000226,8]
[424272272,1780723832000,-151.0,0.000226,5]
[424272288,1780723832000,-500.0,0.00022613,2]
[424272292,1780723832000,-449.10335553,0.00022613,2]
[424272291,1780723832000,-500.0,0.00022613,2]
[424272290,1780723832000,-500.0,0.00022613,2]
[424272289,1780723832000,-500.0,0.00022613,2]
[424272282,1780723832000,-151.0,0.000226,8]
[424272287,1780723832000,-151.0,0.000226,5]
[424272284,1780723832000,-151.0,0.000226,10]
[424272286,1780723832000,-151.0,0.000226,10]
[424272280,1780723832000,-151.0,0.000226,7]
[424272277,1780723832000,-151.0,0.000226,8]
[424272274,1780723832000,-151.0,0.000226,9]
[424272275,1780723832000,-151.0,0.000226,7]
[424272267,1780723832000,-505.94264947,0.00022513,2]
[424272285,1780723832000,-151.0,0.000226,9]
[424272324,1780723838000,-157.749588,0.00023062,2]
[424272316,1780723838000,-258.76843122,0.00023028,2]
[424272317,1780723838000,-500.0,0.00023052,2]
[424272318,1780723838000,-5065.9112028,0.00023053,2]
[424272319,1780723838000,-786.91974214,0.00023062,2]
[424272320,1780723838000,-1543.37425786,0.00023062,2]
[424272323,1780723838000,-447.999,0.00023062,2]
[424272331,1780723838000,-258.76843122,0.00023291,2]
[424272332,1780723838000,-160.0,0.00023414,14]
[424272326,1780723838000,-157.749588,0.00023062,2]
[424272327,1780723838000,-157.749588,0.00023062,2]
[424272328,1780723838000,-189.744352,0.00023173,14]
[424272325,1780723838000,-157.749588,0.00023062,2]
[424272330,1780723838000,-305.507193,0.00023182,14]
[424272315,1780723838000,-171.0,0.00023014,7]
[424272329,1780723838000,-259.281393,0.00023182,14]
[424272322,1780723838000,-185.0,0.00023062,2]
[424272314,1780723838000,-160.0,0.00023,2]
[424272302,1780723838000,-420.80428749,0.00022713,2]
[424272321,1780723838000,-3632.0,0.00023062,2]
[424272295,1780723838000,-50.89664447,0.00022613,2]
[424272297,1780723838000,-279.60344846,0.00022633,3]
[424272298,1780723838000,-175.36080085,0.00022713,2]
[424272296,1780723838000,-630.68666786,0.00022613,2]
[424272301,1780723838000,-368.20375155,0.00022713,2]
[424272299,1780723838000,-337.3123391,0.00022713,2]
[424272300,1780723838000,-300.68744284,0.00022713,2]
[424272308,1780723838000,-184.22038883,0.00022713,2]
[424272303,1780723838000,-657.5066992,0.00022713,2]
[424272306,1780723838000,-157.18926769,0.00022713,2]
[424272304,1780723838000,-339.81243825,0.00022713,2]
[424272305,1780723838000,-611.66238884,0.00022713,2]
[424272307,1780723838000,-1087.39980239,0.00022713,2]
[424272310,1780723838000,-282.94068184,0.00022713,2]
[424272309,1780723838000,-331.59669989,0.00022713,2]
[424272311,1780723838000,-258.76843122,0.00022764,2]
[424272313,1780723838000,-825.0,0.00022975,3]
[424272312,1780723838000,-828.0,0.00022944,3]
[424272334,1780723838000,-583.596836,0.00023414,14]
[424272344,1780723838000,-151.0,0.000235,10]
[424272333,1780723838000,-371.798418,0.00023414,14]
[424272361,1780723838000,-538.05512248,0.00023614,2]
[424272362,1780723838000,-500.0,0.00023614,9]
[424272359,1780723838000,-500.0,0.00023614,2]
[424272368,1780723838000,-157.749588,0.00023645,2]
[424272358,1780723838000,-151.0,0.000236,6]
[424272363,1780723838000,-223.55510761,0.0002363,2]
[424272369,1780723838000,-157.749588,0.00023645,2]
[424272357,1780723838000,-151.0,0.000236,8]
[424272367,1780723838000,-151.0,0.00023642,6]
[424272366,1780723838000,-190.72,0.00023633,2]
[424272365,1780723838000,-161.49901528,0.00023631,20]
[424272371,1780723838000,-157.749588,0.00023645,2]
[424272370,1780723838000,-157.749588,0.00023645,2]
[424272372,1780723838000,-157.749588,0.00023645,2]
[424272374,1780723838000,-157.749588,0.00023645,2]
[424272373,1780723838000,-157.749588,0.00023645,2]
[424272364,1780723838000,-190.72,0.00023631,2]
[424272346,1780723838000,-256.70712,0.0002352,14]
[424272360,1780723838000,-500.0,0.00023614,2]
[424272355,1780723838000,-151.0,0.000236,5]
[424272340,1780723838000,-1130.3575779,0.0002349,2]
[424272337,1780723838000,-157.749588,0.00023444,2]
[424272339,1780723838000,-157.749588,0.00023444,2]
[424272335,1780723838000,-74619.5311,0.00023444,2]
[424272353,1780723838000,-183.598566,0.00023582,14]
[424272341,1780723838000,-151.0,0.000235,5]
[424272336,1780723838000,-157.749588,0.00023444,2]
[424272338,1780723838000,-157.749588,0.00023444,2]
[424272345,1780723838000,-151.0,0.000235,10]
[424272342,1780723838000,-151.0,0.000235,10]
[424272349,1780723838000,-157.749588,0.00023531,2]
[424272352,1780723838000,-258.76843122,0.00023555,2]